[Event "1000GM 0004 IM Norm 2022"]
[Site "Saint Louis"]
[Date "2022.09.23"]
[Round "5.4"]
[White "Cervantes Landeiro, Thalia"]
[Black "Wang, Tianqi"]
[Result "0-1"]
[ECO "D11"]
[WhiteElo "2280"]
[BlackElo "2424"]
[Annotator "TA"]
[PlyCount "94"]
[EventDate "2022.09.21"]
[EventType "tourn"]
[EventCountry "USA"]
[SourceTitle "playchess.com"]
[Source "ChessBase"]
[SourceQuality "1"]
[TimeControl "5400+30"]

{[%evp 9,94,7,10,10,9,3,10,0,2,0,10,0,-3,-4,6,9,17,14,14,13,16,10,17,5,7,8,14,9,12,10,16,0,20,0,16,4,42,6,10,-14,0,-8,0,-8,0,0,0,-16,-27,-21,-21,-25,-22,-75,0,-61,-21,-94,-60,-126,-91,-130,-136,-169,-161,-295,-285,-285,-295,-295,-295,-295,-285,-333,-330,-321,-315,-422,-420,-414,-413,-408,-389,-379,-379,-5429,-5422]} 1. d4 {[%emt 0:00:02]} d5 {[%emt 0:00:20]} 2. c4 {[%emt 0:00:07]} c6 {[%emt 0:00:04]} 3. Nf3 {[%emt 0:00:06]} Nf6 {[%emt 0:00:08]} 4. e3 {[%emt 0:00:05]} a6 {[%emt 0:00:06]} 5. b3 {[%emt 0:01:27]} Bf5 {[%emt 0:00:15]} 6. Nc3 {[%emt 0:02:48] D11: Slav Defence: 3 Nf3 sidelines and 3...Nf6 4 e3 Bg4.} e6 {[%emt 0:00:20]} 7. Bb2 {[%emt 0:06:21]} Nbd7 {[%emt 0:00:21]} 8. Be2 {[%emt 0:00:41] The position is equal.} h6 {[%emt 0:00:13]} 9. O-O {[%emt 0:04:24]} Bd6 {[%emt 0:00:23]} 10. h3 {[%emt 0:08:20]} O-O {[%emt 0:00:12]} 11. Bd3 $1 {[%emt 0:00:27]} Bxd3 {[%emt 0:00:25]} 12. Qxd3 {[%emt 0:00:08]} Qe7 {[%emt 0:00:41]} 13. e4 {[%emt 0:03:20]} Nxe4 {[%emt 0:00:08]} 14. Nxe4 {[%emt 0:00:11]} dxe4 {[%emt 0:00:04]} 15. Qxe4 {[%emt 0:00:13] [#]} Ba3 $146 {[%emt 0:00:06]} ({Predecessor:} 15... Nf6 16. Qe2 Rfd8 17. Rfd1 Rac8 18. Rd2 Rd7 19. Ne5 Bxe5 20. dxe5 Rxd2 21. Qxd2 Ne8 {1-0 (39) Wang,K (1922)-Lim,C (1679) Ballarat 2018}) 16. Qc2 {[%emt 0:02:34]} Bxb2 {[%emt 0:02:29]} 17. Qxb2 {[%emt 0:00:07]} a5 {[%emt 0:00:06]} 18. Rfe1 {[%emt 0:01:32][%cal Od4d5]} Nf6 {[%emt 0:00:38]} 19. Rad1 {[%emt 0:03:55]} Rfd8 {[%emt 0:06:21]} 20. Ne5 {[%emt 0:03:11]} Qc7 {[%emt 0:04:27]} 21. Qc3 {[%emt 0:04:39]} Qb6 {[%emt 0:08:46]} 22. a3 {[%emt 0:05:18]} Nd7 {[%emt 0:17:11]} (22... c5 {with more complications.} 23. dxc5 Qxc5 24. b4 axb4 25. axb4 Qf8) 23. Nf3 {[%emt 0:02:01]} Qc7 {[%emt 0:01:07]} 24. b4 {[%emt 0:02:36]} axb4 {[%emt 0:00:04]} 25. axb4 {[%emt 0:00:10]} Qd6 {[%emt 0:04:53]} 26. Ra1 {[%emt 0:03:01]} b5 {[%emt 0:04:54]} 27. Rxa8 {[%emt 0:09:17]} Rxa8 {[%emt 0:00:06]} 28. Ne5 {[%emt 0:00:45]} Nxe5 {[%emt 0:10:07]} 29. dxe5 $11 {[%emt 0:00:18][%mdl 4096] Endgame KQR-KQR} Qd7 {[%emt 0:00:03]} 30. cxb5 {[%emt 0:02:12]} cxb5 {[%emt 0:00:15]} 31. Rc1 {[%emt 0:00:35] [#]} (31. Re4 $11) 31... Qd5 {[%emt 0:00:56]} (31... Rd8 $1 $17) 32. Qc5 {[%emt 0:02:19]} (32. Qe3 $11) 32... Rd8 {[%emt 0:00:43]} 33. Qe7 {[%emt 0:03:21]} (33. Qxd5 $11 Rxd5 34. Rc8+ Kh7 35. Rc5) 33... Qd2 {[%emt 0:02:20]} 34. Qc7 {[%emt 0:09:41]} ({White should play} 34. Rc7 $15 Qe1+ 35. Kh2 Qxe5+ 36. g3) 34... Rd5 {[%emt 0:01:39]} 35. Ra1 {[%emt 0:02:45]} Qf4 {[%emt 0:02:20]} 36. g3 {[%emt 0:06:53]} Qf5 {[%emt 0:01:26]} 37. Re1 {[%emt 0:08:23]} (37. h4 $142) 37... Qxh3 $19 {[%emt 0:01:10]} ({Inferior is} 37... Rd2 38. Qb6 $15) 38. Qc8+ {[%emt 0:00:13]} Kh7 {[%emt 0:00:17]} 39. Qc2+ {[%emt 0:00:23]} g6 {[%emt 0:00:55]} 40. Qe4 {[%emt 0:01:11]} Qf5 {[%emt 0:02:07]} 41. Qe3 {[%emt 0:00:35]} Kg7 {[%emt 0:00:20]} 42. Kg2 {[%emt 0:00:54]} h5 {[%emt 0:00:38][%cal Bh6h5,Bh5h4][%mdl 32]} 43. Qc3 {[%emt 0:01:37]} h4 {[%emt 0:01:23] [#] White must now prevent ...Rd3.} ({Wrong is} 43... Rd3 $2 44. Qb2 $19) 44. Qe3 {[%emt 0:02:30]} Rd3 {[%emt 0:03:57]} 45. Qe2 {[%emt 0:00:45]} hxg3 {[%emt 0:00:18]} 46. fxg3 {[%emt 0:00:06] Threatens to win with Rf1.} Rc3 {[%emt 0:00:34] ...Rc2 is the strong threat.} 47. g4 $2 {[%emt 0:00:41]} (47. Rd1) 47... Qf4 {[%emt 0:00:22] Weighted Error Value: White=0.40/Black=0.07 (flawless)} 0-1

[Event "1000GM 0004 IM Norm 2022"]
[Site "Saint Louis"]
[Date "2022.09.23"]
[Round "5.5"]
[White "Tsolakidou, Stavroula"]
[Black "Yim, Sung Ho"]
[Result "1-0"]
[ECO "C77"]
[WhiteElo "2400"]
[BlackElo "2207"]
[Annotator "TA"]
[PlyCount "120"]
[EventDate "2022.09.21"]
[EventType "tourn"]
[EventCountry "USA"]
[SourceTitle "playchess.com"]
[Source "ChessBase"]
[SourceQuality "1"]
[TimeControl "5400+30"]

{[%evp 16,120,4,0,13,13,13,10,10,10,15,16,22,9,15,11,15,5,7,7,7,21,20,10,6,-28,22,-39,-26,-58,-42,-95,-69,-103,-29,-29,-29,-35,-21,-14,-16,-24,-23,-58,-35,-35,-28,-50,-24,-25,-18,-46,-46,-46,-50,-41,-48,-70,-68,-81,-70,-61,-34,-41,-22,-36,0,0,0,0,19,0,0,0,21,14,23,13,41,39,95,108,106,72,84,70,99,99,152,142,175,47,244,258,222,237,342,335,649,650,29976,29975,29987,29988,29988,29989,29986]} 1. e4 {[%emt 0:08:28]} e5 {[%emt 0:00:06]} 2. Nf3 {[%emt 0:00:21]} Nc6 {[%emt 0:00:06]} 3. Bb5 {[%emt 0:00:25][%cal Bf1b5,Bb5a4,Ba4b3][%mdl 32]} a6 {[%emt 0:00:06]} 4. Ba4 {[%emt 0:00:10]} Nf6 {[%emt 0:00:27]} 5. O-O {[%emt 0:00:27]} Be7 {[%emt 0:00:25]} 6. d3 {[%emt 0:00:25]} b5 {[%emt 0:00:12]} 7. Bb3 {[%emt 0:00:06]} d6 {[%emt 0:00:06]} 8. a3 {[%emt 0:00:14]} O-O {[%emt 0:00:47]} 9. Nc3 {[%emt 0:00:09]} Na5 {[%emt 0:00:35] C77: Ruy Lopez: 3...a6 4 Ba4 Nf6, unusual lines.} 10. Ba2 {[%emt 0:00:18]} Be6 {[%emt 0:00:21]} 11. b4 {[%emt 0:00:23] Black must now prevent Bxe6.} Bxa2 {[%emt 0:00:16] The position is equal.} 12. Rxa2 {[%emt 0:01:01]} Nc6 {[%emt 0:00:48]} 13. Bg5 {[%emt 0:00:32]} Ng4 {[%emt 0:00:20]} 14. Bd2 {[%emt 0:00:30]} Nf6 {[%emt 0:00:08]} 15. Re1 {[%emt 0:00:28]} Qd7 {[%emt 0:06:31]} 16. Nd5 {[%emt 0:01:26]} Nxd5 {[%emt 0:00:13]} 17. exd5 {[%emt 0:00:05]} Na7 {[%emt 0:01:05]} 18. a4 {[%emt 0:11:48]} c6 {[%emt 0:00:48]} 19. axb5 {[%emt 0:20:57]} (19. dxc6 {keeps more tension.} Nxc6 20. c4 Bf6 21. cxb5 axb5 22. a5) 19... axb5 {[%emt 0:00:29] [#]} 20. c4 $146 {[%emt 0:05:24]} ({Predecessor:} 20. d4 cxd5 21. dxe5 Nc6 {½-½ (23) Sjugirov,S (2696)-Najer,E (2659) Sochi 2022}) 20... bxc4 {[%emt 0:10:15]} (20... cxd5 $142 21. cxd5 Qb7) 21. dxc4 {[%emt 0:09:16]} ({White should try} 21. dxc6 $1 $11 Qxc6 22. Qa1) 21... cxd5 $15 {[%emt 0:01:42]} 22. cxd5 {[%emt 0:02:24]} Qb7 {[%emt 0:04:53]} 23. Ra5 {[%emt 0:06:35]} (23. Qb3 $1 $15) 23... Bd8 {[%emt 0:05:46]} 24. Ra3 {[%emt 0:00:03]} Nb5 {[%emt 0:03:55]} (24... Rc8 $17 {Hoping for ...Nb5.} 25. Rc3 Qxd5 26. Rxc8 Nxc8) 25. Rxa8 $11 {[%emt 0:01:58]} Qxa8 {[%emt 0:00:03]} 26. Qb3 {[%emt 0:00:22]} Nc7 {[%emt 0:04:53]} 27. Rd1 $1 {[%emt 0:00:28]} Qb7 {[%emt 0:04:51]} 28. Be3 {[%emt 0:03:32]} Bf6 {[%emt 0:01:35]} 29. Ne1 {[%emt 0:09:28]} Ra8 {[%emt 0:04:24]} 30. Qc4 {[%emt 0:03:45]} Bd8 {[%emt 0:19:30]} 31. f4 {[%emt 0:05:23]} exf4 {[%emt 0:02:11]} 32. Bxf4 {[%emt 0:01:00]} Qb6+ {[%emt 0:07:04]} 33. Kh1 {[%emt 0:00:10]} Qb5 {[%emt 0:00:45]} 34. Qxb5 {[%emt 0:01:27]} Nxb5 {[%emt 0:00:01]} 35. Nf3 {[%emt 0:00:20]} Bf6 {[%emt 0:00:53]} 36. Kg1 {[%emt 0:01:47][%cal Bh1g1,Bg1f1,Bf1e2][%mdl 32]} h6 {[%emt 0:03:00]} 37. Kf1 {[%emt 0:02:58]} Ra4 {[%emt 0:00:59]} 38. Bd2 {[%emt 0:00:55]} Kf8 {[%emt 0:02:05]} 39. Rc1 {[%emt 0:00:24]} Ra8 {[%emt 0:05:39]} 40. Rc6 {[%emt 0:00:53]} Rb8 {[%emt 0:00:06]} 41. Ke2 {[%emt 0:00:06]} Ke7 {[%emt 0:00:04]} 42. Kd3 {[%emt 0:00:16]} Kd7 {[%emt 0:00:07]} 43. Kc4 {[%emt 0:00:31]} Na3+ {[%emt 0:03:28]} 44. Kd3 {[%emt 0:00:16]} Nb5 {[%emt 0:00:24]} 45. Ra6 {[%emt 0:00:20]} Rb7 {[%emt 0:00:48]} 46. Kc4 {[%emt 0:00:30]} Nc7 {[%emt 0:00:23]} 47. Ra5 {[%emt 0:01:13]} Bd8 {[%emt 0:07:31] [#]} (47... Ne8 $14) 48. Nd4 $1 $16 {[%emt 0:01:58]} Ne8 {[%emt 0:00:04]} 49. Ra6 {[%emt 0:00:21]} Nc7 {[%emt 0:01:14]} 50. Ra4 {[%emt 0:00:20] White is more active.} Ne8 {[%emt 0:00:58]} 51. b5 {[%emt 0:00:54]} Bb6 {[%emt 0:00:11] [#]} ({Better is} 51... Nc7) 52. Nc6 $1 {[%emt 0:00:33]} Nc7 {[%emt 0:00:03] Against Ra8} 53. Ba5 {[%emt 0:01:46]} (53. Ra1 $18) 53... Na8 $2 {[%emt 0:01:37] Loses the game.} (53... Bxa5 $14 54. Rxa5 h5) 54. Bc3 $18 {[%emt 0:00:24][%csl LRa8,LRg7]} Nc7 {[%emt 0:00:28]} 55. Bxg7 {[%emt 0:00:25]} Bg1 {[%emt 0:00:36]} (55... h5 $142 56. Bc3 f5) 56. Bd4 {[%emt 0:00:31]} ({Inferior is} 56. Bxh6 Rxb5 57. Nb4 Rc5+ 58. Kd3 Nxd5 $11) 56... Bxh2 {[%emt 0:01:13]} (56... Bxd4 57. Nxd4 h5) 57. b6 {[%emt 0:00:19][%cal Bb5b6,Bb6a7][%mdl 32]} Ne6 {[%emt 0:00:29]} 58. Ra7 {[%emt 0:00:47] White mates.} Rxa7 {[%emt 0:00:15]} 59. dxe6+ {[%emt 0:00:09]} ({Stronger than} 59. Nxa7 Nxd4 60. Kxd4 Bg1+ 61. Ke4 Bc5 $15) 59... Kxc6 {[%emt 0:00:12]} 60. bxa7 {[%emt 0:00:05]} d5+ {[%emt 0:00:05] Weighted Error Value: White=0.14 (very precise) /Black=0.43} 1-0

[Event "1000GM 0004 IM Norm 2022"]
[Site "Saint Louis"]
[Date "2022.09.24"]
[Round "7.1"]
[White "Eckert, Doug"]
[Black "Denby, Caleb"]
[Result "1/2-1/2"]
[ECO "E32"]
[WhiteElo "2165"]
[BlackElo "2201"]
[Annotator "TA"]
[PlyCount "114"]
[EventDate "2022.09.21"]
[EventType "tourn"]
[EventCountry "USA"]
[SourceTitle "playchess.com"]
[Source "ChessBase"]
[SourceQuality "1"]
[TimeControl "5400+30"]

{[%evp 13,114,0,0,0,0,0,37,35,45,47,104,123,129,134,113,93,127,76,77,78,118,122,155,173,158,180,154,120,133,126,166,143,139,129,126,122,131,114,146,151,217,197,228,154,287,291,363,313,314,218,225,17,22,16,89,62,97,80,166,172,184,200,167,51,57,35,44,29,37,37,39,0,0,0,0,0,0,0,0,0,0,0,0,0,0,0,0,0,0,0,0,0,0,0,0,0,0,0,0,0,0,0,0]} 1. d4 {[%emt 0:00:58]} Nf6 {[%emt 0:19:23]} 2. c4 {[%emt 0:00:04]} e6 {[%emt 0:00:06]} 3. Nc3 {[%emt 0:00:06]} Bb4 {[%emt 0:00:28]} 4. Qc2 {[%emt 0:00:05]} O-O {[%emt 0:00:07]} 5. e4 {[%emt 0:00:11]} d5 {[%emt 0:00:21]} 6. e5 {[%emt 0:00:05]} Ne4 {[%emt 0:00:17]} 7. Bd3 {[%emt 0:00:18]} c5 $1 {[%emt 0:00:43]} 8. Nf3 {[%emt 0:00:08] Hoping for 0-0. E32: Nimzo-Indian: Classical (4 Qc2): 4...0-0.} cxd4 {[%emt 0:06:18]} 9. Nxd4 {[%emt 0:00:08]} dxc4 {[%emt 0:09:01]} 10. Bxe4 {[%emt 0:01:21] White is slightly better.} Qxd4 {[%emt 0:00:04]} 11. Bf4 {[%emt 0:02:28] Threatens to win with Rd1.} f5 {[%emt 0:10:02]} (11... g6 $14) 12. exf6 $1 $16 {[%emt 0:00:17]} Qxf6 {[%emt 0:03:16]} 13. Bxh7+ {[%emt 0:09:43]} Kh8 {[%emt 0:00:10]} 14. Be3 {[%emt 0:03:05]} Nc6 {[%emt 0:08:51] [#]} 15. O-O-O $146 {[%emt 0:05:49]} ({White should play} 15. Be4) ({Predecessor:} 15. O-O Bxc3 16. bxc3 e5 17. Rab1 b6 18. Be4 Bf5 19. Rfd1 g6 20. Bxf5 Qxf5 21. Qe2 Rac8 22. Qxc4 Nd4 23. Qf1 Nc2 24. Qd3 Qxd3 25. Rxd3 e4 26. Rd6 {½-½ (26) Plazuelo Pascual,J (2433)-Pogorelov,R (2377) Lorca 2019}) 15... Bxc3 {[%emt 0:01:58]} 16. bxc3 {[%emt 0:00:33]} e5 {[%emt 0:02:26]} 17. Be4 {[%emt 0:02:43] White is more active.} Bf5 {[%emt 0:03:17]} 18. Bxf5 {[%emt 0:00:34]} Qxf5 {[%emt 0:00:03]} 19. Qxf5 {[%emt 0:00:05]} Rxf5 {[%emt 0:00:03]} 20. Rd5 {[%emt 0:02:36]} b6 {[%emt 0:02:56]} 21. Rhd1 {[%emt 0:06:17]} Rc8 {[%emt 0:03:20]} 22. g4 {[%emt 0:02:54]} Rf3 {[%emt 0:01:32]} 23. h4 {[%emt 0:04:56][%cal Bh2h4,Bh4h5][%mdl 32]} Rh3 {[%emt 0:01:19]} 24. h5 {[%emt 0:00:25]} Rh4 {[%emt 0:00:27]} 25. Rg1 {[%emt 0:00:38]} Rc7 {[%emt 0:00:57]} 26. Kd2 {[%emt 0:03:54]} Kg8 {[%emt 0:05:00]} (26... e4 $16 27. Bg5 Rh3) 27. Ke2 $18 {[%emt 0:00:27] [#] Strongly threatening Kf3.} Rh3 {[%emt 0:00:05]} 28. Rd6 {[%emt 0:02:13]} e4 {[%emt 0:08:00]} (28... b5 $16) 29. Re6 {[%emt 0:03:30]} b5 {[%emt 0:00:17]} 30. Rxe4 {[%emt 0:01:15]} Rd7 {[%emt 0:00:57]} 31. Re6 {[%emt 0:04:58]} Ne7 {[%emt 0:00:18]} 32. Rd1 {[%emt 0:03:56]} (32. Kf1 $18) 32... Nd5 $1 $11 {[%emt 0:00:52]} 33. Rc1 {[%emt 0:03:32]} Nf6 {[%emt 0:01:13]} (33... Kh7 $11 {remains equal.}) 34. Bd4 $16 {[%emt 0:05:33]} Kf7 {[%emt 0:02:28]} 35. Re3 {[%emt 0:09:59]} Rxe3+ {[%emt 0:00:50]} (35... Rh4 $16) 36. fxe3 $18 {[%emt 0:00:05] aiming for Rf1.} Nxg4 $16 {[%emt 0:00:14][%mdl 4096] Endgame KRB-KRN} 37. Rg1 {[%emt 0:00:21]} Nf6 {[%emt 0:00:07] [#]} 38. Rg5 {[%emt 0:00:33]} ({White should try} 38. h6 $1 $18 gxh6 39. Rf1 Rxd4 40. cxd4 (40. exd4 Ke6 $16)) 38... a6 $14 {[%emt 0:00:22]} 39. Kf3 {[%emt 0:01:37]} Rd8 {[%emt 0:01:17]} 40. Rc5 {[%emt 0:02:57]} Rh8 {[%emt 0:02:12]} 41. Rc7+ {[%emt 0:00:43]} Ke6 {[%emt 0:00:23]} 42. Rxg7 {[%emt 0:07:12]} Rxh5 {[%emt 0:01:23] The position is equal.} 43. Rg6 {[%emt 0:00:49]} Rf5+ {[%emt 0:00:04]} 44. Ke2 {[%emt 0:00:27] Black must now prevent e4.} Kf7 {[%emt 0:00:07]} 45. Rxf6+ {[%emt 0:00:09]} Rxf6 {[%emt 0:00:03]} 46. Bxf6 {[%emt 0:00:05]} Kxf6 $11 {[%emt 0:00:02] K3P-K3P} 47. e4 {[%emt 0:00:14]} a5 {[%emt 0:01:30]} 48. a3 {[%emt 0:01:25]} Ke6 {[%emt 0:00:28]} 49. Kd2 {[%emt 0:00:38]} Kd6 {[%emt 0:00:18]} (49... Ke5 $5 50. Ke3 $8 a4 $11) 50. Ke2 {[%emt 0:00:11]} Kc5 {[%emt 0:01:31]} 51. Ke3 {[%emt 0:02:36]} b4 {[%emt 0:01:59]} 52. cxb4+ {[%emt 0:00:21]} axb4 {[%emt 0:00:05]} 53. axb4+ {[%emt 0:00:03]} Kxb4 {[%emt 0:00:05] ( -> ...c3). KP-KP} 54. Kd2 {[%emt 0:00:07]} c3+ {[%emt 0:00:06]} 55. Kc2 {[%emt 0:00:03]} Kc4 {[%emt 0:00:03]} 56. e5 {[%emt 0:00:04] White threatens e6 and mate.} Kd5 {[%emt 0:00:02]} 57. Kxc3 {[%emt 0:00:02]} Kxe5 {[%emt 0:00:05] Weighted Error Value: White=0.22 (precise) /Black=0.21 (precise)} 1/2-1/2

[Event "1000GM 0004 IM Norm 2022"]
[Site "Saint Louis"]
[Date "2022.09.24"]
[Round "7.2"]
[White "Krishnan, Varun"]
[Black "Antova, Gabriela"]
[Result "1/2-1/2"]
[ECO "C76"]
[WhiteElo "2306"]
[BlackElo "2305"]
[Annotator "TA"]
[PlyCount "93"]
[EventDate "2022.09.21"]
[EventType "tourn"]
[EventCountry "USA"]
[SourceTitle "playchess.com"]
[Source "ChessBase"]
[SourceQuality "1"]
[TimeControl "5400+30"]

{[%evp 15,93,36,39,20,43,-11,0,0,0,0,0,-3,14,-19,20,-100,-88,-118,-72,-85,-76,-131,-126,-135,-117,-164,-112,-113,-92,-105,-94,-160,-144,-170,-124,-125,-100,-133,-33,-143,-138,-220,-237,-337,-170,-150,-102,-108,-26,-33,-45,-95,-31,-34,-6,-46,-42,-82,-54,-85,-5,-205,-210,-200,-66,-83,-50,-134,-133,-118,-101,-101,-94,-103,-92,-115,-17,-5195,-789,-754]} 1. e4 {[%emt 0:04:06]} e5 {[%emt 0:00:15]} 2. Nf3 {[%emt 0:00:06]} Nc6 {[%emt 0:00:08]} 3. Bb5 {[%emt 0:00:03]} a6 {[%emt 0:00:10]} 4. Ba4 {[%emt 0:00:03]} d6 {[%emt 0:00:15]} 5. c3 {[%emt 0:00:27]} g6 {[%emt 0:00:51]} 6. O-O {[%emt 0:00:24]} Bg7 {[%emt 0:00:36]} 7. d4 {[%emt 0:00:52]} Bd7 {[%emt 0:01:29]} 8. Be3 {[%emt 0:01:14]} Nf6 {[%emt 0:01:04]} 9. Nbd2 {[%emt 0:01:02] C76: Ruy Lopez: Deferred Steinitz: 5 c3 Bd7 6 d4 g6.} Ng4 {[%emt 0:09:23]} 10. Qe2 {[%emt 0:08:42]} (10. Bg5 $14 f6 11. Bh4) 10... Nxe3 {[%emt 0:03:40] [#]} 11. fxe3 $146 {[%emt 0:00:25] The position is equal.} ({Predecessor:} 11. Qxe3 O-O 12. dxe5 Nxe5 13. Bxd7 Nxd7 14. Nd4 Qe7 15. Rfe1 Rae8 16. Rad1 Nc5 17. N4b3 {0-1 (25) Wieland,I (1688)-Ljuboschiz,A (2222) Leverkusen 2007}) 11... b5 {[%emt 0:02:55]} 12. Bc2 {[%emt 0:01:21]} O-O {[%emt 0:01:38]} 13. a4 {[%emt 0:02:41]} Ne7 {[%emt 0:07:47]} 14. b4 {[%emt 0:05:13]} h6 {[%emt 0:08:34]} 15. Ne1 {[%emt 0:17:39]} (15. dxe5 $11 Nc6 16. axb5 axb5 17. Rxa8 Qxa8 18. exd6) 15... exd4 {[%emt 0:04:20]} (15... a5 {is interesting.} 16. bxa5 Rxa5 17. Nef3 bxa4 18. Ra3 exd4 19. cxd4 c5) 16. exd4 {[%emt 0:00:56]} c5 {[%emt 0:00:23]} (16... a5 $142 {And now ...axb4 would win.} 17. bxa5 (17. axb5 axb4 18. Rxa8 Qxa8 $17) 17... Rxa5) 17. bxc5 $17 {[%emt 0:00:58]} dxc5 {[%emt 0:00:13]} 18. e5 (18. Nef3 $142) 18... cxd4 $1 {[%emt 0:03:58]} 19. cxd4 {[%emt 0:04:40]} bxa4 $1 {[%emt 0:01:20]} 20. Qe3 {[%emt 0:12:48]} (20. Nd3 $17) 20... Bb5 {[%emt 0:04:57]} (20... Nd5 $19 21. Qf2 Bb5 22. Bxa4 Bxf1 23. Qxf1 Nc3) 21. Rf2 {[%emt 0:01:18]} Nd5 {[%emt 0:02:49]} 22. Qa3 {[%emt 0:02:11]} Nb6 {[%emt 0:12:25]} 23. Ndf3 {[%emt 0:02:04]} (23. Nef3 $142) 23... Rc8 $1 {[%emt 0:07:54]} 24. Nd3 {[%emt 0:07:25]} Bc6 {[%emt 0:01:21]} (24... Nc4 $19 25. Qb4 Na5) 25. Nde1 {[%emt 0:04:03]} Re8 {[%emt 0:01:55]} 26. h4 {[%emt 0:03:53][%cal Oh4h5]} Bf8 {[%emt 0:03:10]} (26... Bb5 $17 {Strongly threatening ...Bf8.} 27. h5 gxh5) 27. Qd3 {[%emt 0:01:53]} (27. Qe3 $15) 27... Bb5 {[%emt 0:04:00] A strong pair of Bishops.} 28. Qe4 {[%emt 0:00:41]} (28. Qd2 $17) 28... Nd5 $1 $19 {[%emt 0:01:56]} 29. h5 {[%emt 0:03:44]} (29. Qg4 $142 h5 30. Qg3) 29... Nf6 {[%emt 0:01:46]} (29... f5 $142 30. Qh4 g5) 30. Qe3 {[%emt 0:02:37]} Nxh5 {[%emt 0:08:13]} (30... Ng4 $142 31. Qf4 Nxf2 32. hxg6 fxg6 $1 33. Bxg6 Re7 34. Kxf2 Rc3) 31. Bxa4 $17 {[%emt 0:00:19]} Nf6 {[%emt 0:00:23]} (31... Rc7 $17) 32. Bb3 $1 $11 {[%emt 0:01:52]} ({Reject} 32. Bxb5 axb5 33. Ra7 Nd5 $17) 32... Rc7 $36 {[%emt 0:01:13][%mdl 2048] Threatens to win with ...Ng4. Black is pushing.} 33. Qf4 {[%emt 0:03:07] Inhibits Ng4.} ({White should play} 33. Rc2 $15) 33... Nd5 {[%emt 0:00:47]} (33... Nh5 $1 $17 {[%cal Rh5f4]} 34. Qe4 Kg7) 34. Qe4 $15 {[%emt 0:01:28]} Rd7 {[%emt 0:00:22]} 35. Nd3 {[%emt 0:01:55]} f5 {[%emt 0:01:46]} 36. Qe2 {[%emt 0:00:02]} Kh7 {[%emt 0:00:12] White must now prevent ...Nf4.} 37. Qd2 {[%emt 0:02:33] [#] Against Nf4} Qb6 {[%emt 0:01:05]} ({Black should try} 37... Rc7 $1 $17 {aiming for ...Rc3.} 38. Bxd5 Qxd5) 38. Nf4 $2 {[%emt 0:01:11]} (38. Rc1 $1 $11 {and White stays safe.}) 38... Nxf4 $19 {[%emt 0:02:18]} 39. Qxf4 {[%emt 0:00:03] [#]} Bc6 {[%emt 0:00:12]} (39... Red8 $1 $19 {[%cal Rd7d4] Hoping for ...Rxd4.} 40. Rd1 Bc6) 40. Rb1 {[%emt 0:01:06][%cal Ob3g8,Ba1b1,Bb1c1,Bc1c7][%mdl 32]} Qa7 {[%emt 0:00:41]} 41. e6 {[%emt 0:01:08]} (41. g4 $1 $15 fxg4 42. Qxg4 Bxf3 43. Qxf3 Qxd4 44. Rd1) 41... Rb7 $17 {[%emt 0:01:02]} 42. Rc1 {[%emt 0:01:59]} Bxf3 {[%emt 0:01:04]} ({Don't play} 42... Rxb3 43. Rxc6 Qb8 44. Qxb8 Rbxb8 45. Rxa6 $14) 43. Rxf3 {[%emt 0:00:37]} Bg7 {[%emt 0:00:15]} 44. Rd3 {[%emt 0:01:00]} h5 {[%emt 0:00:50]} 45. Qd6 {[%emt 0:00:29]} Rxb3 {[%emt 0:00:26]} 46. Rc7 $2 {[%emt 0:00:35][%mdl 8192]} (46. Rxb3 $11 Qxd4+ 47. Qxd4 Bxd4+ 48. Kf1) 46... Rb7 {[%emt 0:00:51]} 47. Rdc3 {[%emt 0:00:07][%mdl 32768] Weighted Error Value: White=0.48/Black=0.38. An unexpected result.} 1/2-1/2

[Event "1000GM 0004 IM Norm 2022"]
[Site "Saint Louis"]
[Date "2022.09.24"]
[Round "7.4"]
[White "Tsolakidou, Stavroula"]
[Black "Chen, Ryo"]
[Result "1/2-1/2"]
[ECO "B60"]
[WhiteElo "2400"]
[BlackElo "2256"]
[Annotator "TA"]
[PlyCount "41"]
[EventDate "2022.09.21"]
[EventType "tourn"]
[EventCountry "USA"]
[SourceTitle "playchess.com"]
[Source "ChessBase"]
[SourceQuality "1"]
[TimeControl "5400+30"]

{[%evp 12,41,40,32,45,26,33,35,60,39,35,23,57,60,54,57,68,46,92,101,113,113,134,133,133,129,187,173,179,168,202,109]} 1. e4 {[%emt 0:03:15]} c5 {[%emt 0:00:33]} 2. Nf3 {[%emt 0:00:10]} d6 {[%emt 0:00:04]} 3. d4 {[%emt 0:00:05]} cxd4 {[%emt 0:00:05]} 4. Nxd4 {[%emt 0:00:05]} Nf6 {[%emt 0:00:09]} 5. Nc3 {[%emt 0:00:05]} Nc6 {[%emt 0:00:05]} 6. Bg5 {[%emt 0:00:06]} a6 {[%emt 0:01:07]} 7. Qd2 {[%emt 0:05:48]} Qb6 {[%emt 0:06:54] 7...Nxd4 is a critical line. B60: Sicilian: Richter-Rauzer: Unusual Black 6th moves and 6...Bd7 without 7 Qd2.} 8. Nxc6 {[%emt 0:20:24]} bxc6 {[%emt 0:00:00]} 9. Bc4 {[%emt 0:00:45]} e6 {[%emt 0:00:00] White is slightly better.} 10. Bxf6 {[%emt 0:02:53]} gxf6 {[%emt 0:00:00] [#]} 11. O-O-O $146 {[%emt 0:00:10]} ({Predecessor:} 11. Bb3 h5 12. f4 Bb7 13. O-O-O d5 14. Rhe1 Bb4 15. exd5 Rd8 16. a3 Ba5 17. Qd3 {0-1 (31) Smiatek,H-Wippich,J Cologne 1994}) 11... Be7 {[%emt 0:00:40]} 12. Rhe1 {[%emt 0:01:12]} Rb8 {[%emt 0:04:14][%csl Gb8][%cal Rb6b2] [#]} 13. Bb3 $1 {[%emt 0:02:51] Active counter play!} Bd7 {[%emt 0:04:36]} 14. f4 {[%emt 0:05:25][%cal Bf2f4,Bf4f5][%mdl 32]} c5 {[%emt 0:06:16]} (14... O-O $14 {feels stronger.}) 15. Qe2 $16 {[%emt 0:01:02]} Bb5 {[%emt 0:01:53]} 16. Nxb5 {[%emt 0:03:42]} axb5 {[%emt 0:00:34] [#]} 17. c4 $1 {[%emt 0:00:22]} bxc4 {[%emt 0:18:43]} 18. Bxc4 {[%emt 0:00:43]} Rg8 {[%emt 0:01:42]} (18... Bf8 $16) 19. f5 $18 {[%emt 0:06:25] White is clearly better.} Kd7 {[%emt 0:04:20]} 20. Rd3 {[%emt 0:00:54]} Qb4 {[%emt 0:03:48]} 21. Rg3 {[%emt 0:16:10] Weighted Error Value: White=0.05 (flawless) /Black=0.21 (precise)} (21. Ra3 $18) 1/2-1/2